Cogmind - Beta 13 @@@ ROGUE MODE // 2024.04.03 @ 18:33:33 Player: june Result: Destroyed by D-53 Grenadier with Mini Grenade Launcher Performance ------------- Evolutions (0) 0 Regions Visited (2) 400 Robots Destroyed (18) 90 Value Destroyed (391) 391 Prototype IDs (2) 40 Alien Tech Used (0) 0 Bonus (0) 0 TOTAL SCORE: 921 Bonus ------- None Cogmind --------- Core Integrity 0/250 Matter 255/300 Energy 76/100 System Corruption 0% Temperature Cool (0) Movement Walking (120) Location -10/Mines Parts ------- > --- POWER (1) -------- (None) > --- PROPULSION (2) --- Aluminum Leg Aluminum Leg > --- UTILITY (2) ------ Small Storage Unit Seismic Detector > --- WEAPON (2) ------- Assault Rifle > --- INVENTORY (8) ---- Light Nuclear Core Light Nuclear Core Light Treads Medium Laser Particle Gun Peak State ------------ > --- POWER ------------ Light Nuclear Core > --- PROPULSION ------- Light Treads Light Treads > --- UTILITY ---------- Small Storage Unit Seismic Detector > --- WEAPON ----------- Particle Gun Assault Rifle > --- INVENTORY -------- Light Nuclear Core Light Nuclear Core Light Treads Aluminum Leg Aluminum Leg Small Laser Grenade Launcher Grenade Launcher [Rating: 11] Favorites ----------- Power Light Nuclear Core Engine Ion Engine Power Core Light Nuclear Core Propulsion Light Treads Treads Light Treads Leg Aluminum Leg Utility Small Storage Unit Device Seismic Detector Storage Small Storage Unit Weapon Grenade Launcher Energy Gun Medium Laser Ballistic Gun Assault Rifle Launcher Grenade Launcher Build | -11 -10 -10 ------- Run | Yrd Mat Min Slots Evolved . | . . . Power . | . . . Propulsion . | . . . Utility . | . . . Weapon . | . . . Parts Attached 24 | 7 11 6 Power 3 | 1 2 . Engine 1 | 1 . . Core 2 | . 2 . Reactor . | . . . Propulsion 4 | 2 . 2 Treads 2 | 2 . . Leg 2 | . . 2 Wheel . | . . . Hover . | . . . Flight . | . . . Utility 2 | 2 . . Device 1 | 1 . . Storage 1 | 1 . . Processor . | . . . Hackware . | . . . Protection . | . . . Artifact . | . . . Weapon 15 | 2 9 4 Energy Gun 4 | 1 2 1 Energy Cannon . | . . . Ballistic Gun 5 | 1 3 1 Ballistic Cannon . | . . . Launcher 6 | . 4 2 Special Weapon . | . . . Impact Weapon . | . . . Slashing Weapon . | . . . Piercing Weapon . | . . . Special Melee Weapon . | . . . Unidentified Prototypes . | . . . Parts Lost 5 | . . 5 Power 1 | . . 1 Propulsion 2 | . . 2 Utility . | . . . Weapon 2 | . . 2 Highest Loss Streak 5 | . . 5 To Critical Strikes . | . . . Average Slot Usage (%) 99 | . 100 95 Engine 3 | . 4 . Core 10 | . 9 11 Treads 27 | . 28 23 Device 14 | . 14 14 Storage 14 | . 14 14 Energy Gun 8 | . 8 8 Ballistic Gun 7 | . 6 11 Launcher 11 | . 12 5 Naked Turns . | . . . Heaviest Build 17 | 14 17 17 Greatest Support 40 | 40 40 40 Greatest Overweight (x) . | . . . Average Overweight (x) . | . . . Largest Inventory Capacity 8 | 8 8 8 Average Capacity 7 | 7 8 8 Most Carried 8 | 5 8 8 Average Carried 6 | 3 7 7 Final Capacity 8 | 8 8 8 Final Carried 8 | 4 8 5 Class Distribution -------------------- 100% | Mutant Dominant Class ---------------- Mutant | -10/Materials Mutant | -10/Mines Resources | -11 -10 -10 ----------- Run | Yrd Mat Min Matter Collected 644 | 249 190 205 Remotely . | . . . Salvage Created 498 | 52 294 152 Parts 37 | 8 19 10 Haulers Intercepted 1 | . 1 . Recyclers Shooed . | . . . Parts Field Recycled . | . . . Retrieved Matter . | . . . Parts Self-Destructed . | . . . Prevented . | . . . Kills | -11 -10 -10 ------- Run | Yrd Mat Min Combat Hostiles Destroyed 9 | . 5 4 Guns 3 | . 2 1 AOE 6 | . 3 3 Classes Destroyed 7 | 1 5 1 Worker 1 | . 1 . Tunneler 3 | 2 1 . Hauler 1 | . 1 . Recycler 2 | . 1 1 Watcher 2 | . 2 . Swarmer 3 | . . 3 Grunt 6 | . 5 1 Best Kill Streak 4 | 1 4 3 Combat Bots Only 3 | . 2 3 Max Kills in Single Turn 3 | 1 2 3 Gunslinging . | . . . Exploded 3 | . 1 3 Melee . | . . . Uniques/NPCs Destroyed . | . . . Combat | -11 -10 -10 -------- Run | Yrd Mat Min Hostile Shots Fired 38 | . 16 22 Missed 8 | . 4 4 Damage Taken 1104 | . 307 797 Core 255 | . 19 236 Absorbed by Shields . | . . . Core Remaining (%) 100 | 100 . . Volleys Fired 31 | 7 19 5 Largest 2 | 2 2 2 Hottest 80 | 60 80 70 Shots Fired 62 | 14 38 10 Gun 40 | 14 20 6 Cannon . | . . . Launcher 22 | . 18 4 Special . | . . . Kinetic 18 | 7 8 3 Thermal 22 | 7 12 3 Explosive 22 | . 18 4 Electromagnetic . | . . . Robot Hit Streak 5 | 5 4 2 Robot Miss Streak 2 | 1 2 1 Penetration Max . | . . . Secondary Targets . | . . . Shots Hit Robots 26 | 9 14 3 Core Hits 31 | 2 18 11 Critical Kills . | . . . Critical Parts Destroyed . | . . . Critical Strikes 1 | . 1 . Burn 1 | . 1 . Melee Attacks . | . . . Impact . | . . . Slashing . | . . . Piercing . | . . . Sneak Attacks . | . . . Combat Hostiles . | . . . Follow-up Attacks . | . . . Damage Inflicted 1079 | 110 752 217 Guns 304 | 110 152 42 Cannons . | . . . Explosions 775 | . 600 175 Melee . | . . . Ramming . | . . . Kinetic 162 | 68 65 29 Thermal 142 | 42 87 13 Explosive 775 | . 600 175 Electromagnetic . | . . . Impact . | . . . Slashing . | . . . Piercing . | . . . Highest Corruption . | . . . Average Corruption . | . . . Corruption Purged . | . . . Corruption Blocked . | . . . Overload Shots . | . . . Overflow Damage 3 | . 3 . Projectiles . | . . . Explosions 3 | . 3 . Melee . | . . . Knockbacks . | . . . Impact . | . . . Kinetic . | . . . Secondary . | . . . Self-Inflicted Damage 135 | . 135 . Shots 6 | . 6 . Rammed . | . . . Targets Rammed . | . . . Kicked . | . . . Crushed . | . . . Highest Temperature 51 | . 51 39 Average Temperature 14 | . 15 13 Received Heat Transfer 126 | . 117 9 Siege Activations . | . . . Robots Corrupted . | . . . Combat Hostiles . | . . . Parts Fried . | . . . Impact Corruptions . | . . . Robots Melted . | . . . Combat Hostiles . | . . . Parts Melted . | . . . Heat Transferred 458 | 100 321 37 Parts Sabotaged . | . . . Parts Stolen . | . . . Parts Stripped . | . . . Power Chain Reactions . | . . . Alert | -11 -10 -10 ------- Run | Yrd Mat Min Peak Influence 153 | 10 153 148 Initial 30 | . 6 30 Average 56 | 2 67 63 Maximum Alert Level . | . . . Low Security (%) 100 | 100 100 100 Level 1 . | . . . Level 2 . | . . . Level 3 . | . . . Level 4 . | . . . Level 5 . | . . . High Security . | . . . Max Security . | . . . Squads Dispatched 3 | . 3 . Investigation 1 | . 1 . Extermination . | . . . Reinforcement 2 | . 2 . Assault . | . . . Garrison . | . . . Intercept . | . . . Searches Triggered . | . . . Construction Impeded . | . . . Haulers Reinforced . | . . . Active Scanning Responses . | . . . Cargo Convoy Interrupts . | . . . Stealth | -11 -10 -10 --------- Run | Yrd Mat Min Distress Signals . | . . . Communications Jammed . | . . . Distress Signals . | . . . Times Spotted 14 | . 8 6 Peak Tracking Total 5 | . 2 5 Tactical Retreats . | . . . Traps | -11 -10 -10 ------- Run | Yrd Mat Min Traps Triggered 1 | . 1 . Indirectly . | . . . Trap Hack Attempts . | . . . Triggered . | . . . Disarmed . | . . . Reprogrammed . | . . . Reused . | . . . Traps Extracted . | . . . Installed . | . . . Triggered . | . . . Machines | -11 -10 -10 ---------- Run | Yrd Mat Min Machines Disabled 5 | . 5 . Max in Single Turn 2 | . 2 . Machines Repaired . | . . . Machines Dismantled . | . . . Machines Sabotaged . | . . . Overloaded Fab Kills . | . . . Hacking | -11 -10 -10 --------- Run | Yrd Mat Min Machines Accessed 6 | . 6 . Terminals 6 | . 6 . Fabricators . | . . . Repair Stations . | . . . Recycling Units . | . . . Scanalyzers . | . . . Garrison Access . | . . . Total Hacks 15 | . 15 . Successful 4 | . 4 . Failed 11 | . 11 . Catastrophic 2 | . 2 . Database Lockouts . | . . . Manual . | . . . Terminals 15 | . 15 . Fabricators . | . . . Repair Stations . | . . . Recycling Units . | . . . Scanalyzers . | . . . Garrison Access . | . . . Terminal Hacks 4 | . 4 . Prototype ID Bank 1 | . 1 . Unreport Threat 1 | . 1 . Zone Layout 2 | . 2 . Fabricator Hacks . | . . . Repair Station Hacks . | . . . Recycling Unit Hacks . | . . . Scanalyzer . | . . . Garrison Access Hacks . | . . . Unauthorized Hacks . | . . . Terminals . | . . . Fabricators . | . . . Repair Stations . | . . . Recycling Units . | . . . Scanalyzers . | . . . Garrison Access . | . . . Data Cores Recovered . | . . . Used . | . . . Hacking Detections 6 | . 6 . Full Trace Events . | . . . Feedback Events . | . . . Feedback Blocked . | . . . Robot Schematics Acquired . | . . . Robots Built . | . . . Authchips . | . . . Time . | . . . Total Robot Build Rating . | . . . Part Schematics Acquired . | . . . Parts Built . | . . . Authchips . | . . . Time . | . . . Total Part Build Rating . | . . . Parts Repaired . | . . . Time . | . . . Parts Recycled . | . . . Recycled Matter . | . . . Retrieved Matter . | . . . Retrieved Components . | . . . Parts Scanalyzed . | . . . Part Schematics Acquired . | . . . Parts Damaged . | . . . Bothacking | -11 -10 -10 ------------ Run | Yrd Mat Min Used RIF Installer . | . . . Robots Hacked . | . . . Non-combat . | . . . Combat . | . . . Robot Hacks Applied . | . . . Relay Couplers Released . | . . . Fabnet Peak Effective % . | . . . Robots Rewired . | . . . Allies Hacked . | . . . Hacks Repelled . | . . . Allies | -11 -10 -10 -------- Run | Yrd Mat Min Total Allies . | . . . Largest Group . | . . . Highest-Rated Group . | . . . Highest-Rated Ally . | . . . Total Orders . | . . . Ally Attacks . | . . . Total Damage . | . . . Kills . | . . . Allies Corrupted . | . . . Allies Melted . | . . . Intel | -11 -10 -10 ------- Run | Yrd Mat Min Robot Analysis Total . | . . . Derelict Logs Recovered . | . . . Drone Launches . | . . . Drone Recoveries . | . . . Exploration | -11 -10 -10 ------------- Run | Yrd Mat Min Turns Passed 911 | 140 647 124 Spaces Moved 493 | 75 354 64 Core 16 | 16 . . Treads 467 | 59 354 54 Legs 10 | . . 10 Wheels . | . . . Hover . | . . . Flight . | . . . Fastest Speed 50 | 50 160 120 Average Speed 155 | 136 160 153 Slowest Speed 160 | 160 160 160 Overloaded Moves . | . . . Propulsion Burnouts . | . . . Robots Hopped . | . . . Cave-ins Triggered . | . . . Exploration Rate (%) 27 | 4 60 17 Regions Visited 2 Branch Regions 1 Pre-discovered Areas . | . . . Known Exits Taken . | . . . Unknown Exits Taken 2 | 1 1 . Scrap Searched . | . . . Spaces Dug . | . . . Terrain Destroyed 122 | . 97 25 Melee . | . . . Projectile . | . . . AOE 122 | . 97 25 Terrain Rammed . | . . . Walls Destroyed . | . . . Machines Disabled . | . . . Actions | -11 -10 -10 --------- Run | Yrd Mat Min Total 572 | 98 394 80 Wait . | . . . Move 491 | 74 353 64 Hop . | . . . Pick Up 19 | 10 7 2 Fast Attach 1 | 1 . . Attach 9 | 6 . 3 Detach . | . . . Swap 14 | . 11 3 Drop 7 | . 4 3 Fire 31 | 7 19 5 Melee . | . . . Ram . | . . . Kick . | . . . Crush . | . . . Escape Stasis . | . . . Rewire . | . . . Trap . | . . . Miscellaneous . | . . . Route ------- -11/Scrapyard -10/Materials (discovered 2 exits: [*Mat] / [*Min]) -10/Mines History --------- Turn | Location | Event 8 | -11/Scrapyard | Discovered new exit (range 13) 141 | -11/Scrapyard | Entered Materials 289 | -10/Materials | Discovered new exit (range 6) 358 | -10/Materials | Build established: Mutant 440 | -10/Materials | Discovered new exit (range 5) 788 | -10/Materials | Entered Mines 798 | -10/Mines | Met a Derelict bent on vengeance 869 | -10/Mines | Assembled infested the area 874 | -10/Mines | Assisted by a Guerilla fighting off Assembled 899 | -10/Mines | Core integrity fell below 50% 906 | -10/Mines | Core integrity fell below 20% 912 | -10/Mines | Destroyed by D-53 Grenadier with Mini Grenade Launcher Last Messages --------------- Demolisher response squad. A derelict emerges from the shadows: "You need to get out of here! I've been tracking a group of Assembled to figure out where they're coming from, and they're closing on this area, come on!" Acquired 20 matter. C-30 ARC bursts open, deploying its payload. D-53 Grenadier unfolds itself. S-10 Pest destroyed. R-06 Scavenger destroyed. T-07 Excavator destroyed. R-06 Scavenger destroyed. Grenade Launcher destroyed. The unstable cave ceiling collapses. Grenade Launcher destroyed. Lgt. Treads destroyed. Lgt. Nuclear Core destroyed. K-01 Serf collects debris. The unstable cave ceiling collapses. Map ----- +----------------------------------------------------+ | ?????????????????????????????????????????????????? | | ?????????????????????????????????????????????????? | | ?????????????????????????????????????????????????? | | ?????????????????????????????????????????????????? | | ?????????????????????????????????????????????????? | | ?????????????????????????????????????????????????? | | ?????????????????????????????????????????????????? | | ????????? ?????????????????????????????????????? | | ?????????? ??? ?????????????????????????????????? | | ?????????# ### ?????????????????????????????????? | | ????????? * ?????????????????????????????????? | | ?????????# % #?????????????????????????????????? | | ??????#### #?????????????????????????????????? | | ??????? [ ??????????????????????????????????? | | ???????# ??????????????????????????????????? | | ???????# ??????????????????????????????????? | | ???????# ??????????????????????????????????? | | ???????# #??????????????????????????????????? | | ?????### ##?????????????????????????????????? | | ?????# * #######???????????????????????????? | | ??????# = # # ###????????????????????????? | | ??????# = # ????????????????????????? | | ???????# ! d ##???????????????????????? | | ??###### d #???????????????????????? | | ?## ## #### #??????????????????? | | ## # @ =*#??????????????????? | | # ###%#??????????????????? | | ## # # ##??????????????????????? | | ## ## ## # ##???????????????????????? | | # ### #### # #????????????????????????? | | ## ## #??#### ????????????????????????? | | ?### ## #?????# #???????????????????????? | | ???# ## #?????### ##???????????????????????? | | ???# ## #???????# ###????????????????????????? | | ???# ## #???????## ##??????????????????????????? | | ???# ## #????????####???????????????????????????? | | ???# ## #???????????????????????????????????????? | | ???# ## #???????????????????????????????????????? | | ???? #? ????????????????????????????????????????? | | ???? #?#????????????????????????????????????????? | | ???? #??????????????????????????????????????????? | | ???? ???????????????????????????????????????????? | | ?????????????????????????????????????????????????? | | ?????????????????????????????????????????????????? | | ?????????????????????????????????????????????????? | | ?????????????????????????????????????????????????? | | ?????????????????????????????????????????????????? | | ?????????????????????????????????????????????????? | | ?????????????????????????????????????????????????? | | ?????????????????????????????????????????????????? | +----------------------------------------------------+ Best States ------------- Heat Dissipation 25 Energy Generation 14 Energy Capacity 250 Matter Stores 300 Matter Capacity 300 Sight Range 16 Terrain Scan Density 10 Evasion (%) 55 Recoil Reduction 2 Item Schematics ----------------- None Robot Schematics ------------------ None Fabricated ------------ Nothing Alien Tech Used ----------------- None Achievements -------------- Let's See Who's Tougher Challenges ------------ None Game ------ Seed ReflectiveGuidedCompactor Manual? 0 Play Time 00:14:24 Cumulative 5.9 hours Start 2024.04.03 @ 18:21:12 End 2024.04.03 @ 18:33:33 Sessions 1 Manual Loads 0 Difficulty Rogue Special Mode None Game No. 7 Rogue 7 Adventurer 0 Explorer 0 Win Type - Total 0 Types 0/0/0/0/0/0/0/0/0 Lore% 11 Gallery% 12 Achievement% 11 Wizard Run 0 Options --------- Layout 1 ASCII 0 Keyboard 0 Movement Mouse Keybinds 0 Fullscreen 1 Font 24/Smallcaps Map View 50x35 Zoom Use 0% Tactical HUD 0 Map Filters NONE Filters NONE Steam 1 RUN: bc75a639-06a0-4114-9058-b145013c3d24